bitfinex/quotes_ETHUSD_20240709
["timestamp","ask_amount","ask_price","bid_price","bid_amount"]
[1720519155010,3.31602667,3097.9,3097.8,0.0648966]
[1720519155406,4.01859034,3097.9,3097.8,0.0648966]
[1720519155649,6.05012962,3097.9,3097.8,0.0648966]
[1720519155811,6.11475107,3097.9,3097.8,0.0648966]
[1720519156445,4.08321179,3097.9,3097.8,0.0648966]
[1720519156831,3.38064812,3097.9,3097.8,0.0648966]
[1720519157039,4.08334492,3097.9,3097.8,0.0648966]
[1720519157217,5.03334492,3097.9,3097.8,0.0648966]
[1720519157423,7.40512309,3097.9,3097.8,0.0648966]
[1720519158228,10.80612309,3097.9,3097.8,0.0648966]
[1720519158440,8.43434492,3097.9,3097.8,0.0648966]
[1720519160043,10.80695363,3097.9,3097.8,0.0648966]
[1720519160222,10.80692109,3097.9,3097.8,0.0648966]
[1720519160421,8.43434492,3097.9,3097.8,0.0648966]
[1720519160758,7.73164812,3097.9,3097.8,0.0648966]
[1720519160931,8.43440461,3097.9,3097.8,0.0648966]
[1720519161268,10.80646526,3097.9,3097.8,0.0648966]
[1720519161764,8.43440492,3097.9,3097.8,0.0648966]
[1720519162342,11.43440492,3097.9,3097.8,0.0648966]
[1720519162654,14.70425445,3097.9,3097.8,0.0648966]
[1720519163227,18.14425445,3097.9,3097.8,0.0648966]
[1720519163431,18.14425445,3097.9,3096.0,6.59311]
[1720519163432,5.341,3097.7,3096.0,6.59311]
[1720519163653,1.35538862,3096.6,3096.2,0.95]
[1720519163936,1.69423578,3096.7,3096.2,0.95]
[1720519163937,1.35538862,3096.7,3096.3,2.4132]
[1720519164255,1.35538862,3096.8,3096.3,3.3632]
[1720519164662,1.35538862,3096.8,3096.3,6.59285]
[1720519166662,1.35538862,3096.9,3096.6,2.3879]
[1720519166976,1.35538862,3097.0,3096.6,2.3879]
[1720519167120,1.35538862,3096.9,3096.6,2.3879]
[1720519167486,1.35538862,3097.0,3096.6,2.3879]
[1720519168565,1.35538862,3096.9,3096.6,2.3879]
[1720519168981,1.35538862,3096.9,3096.4,5.54795]
[1720519169280,1.35538862,3096.8,3096.4,5.54794]
[1720519169435,1.35538862,3096.9,3096.4,2.3184]
[1720519169836,1.35538862,3096.9,3096.4,5.54792]
[1720519170282,0.16928191,3097.0,3096.4,5.54792]
[1720519170580,0.95,3097.3,3096.2,3.22974]
[1720519170581,1.35369562,3096.8,3096.2,3.22974]
[1720519171078,1.96831707,3096.7,3096.0,2.483]
[1720519171670,1.96831707,3096.7,3095.9,3.23002]
[1720519171872,2.67421596,3096.7,3095.9,3.23002]
[1720519172371,2.67421596,3096.7,3095.9,6.46004]
[1720519172796,1.35369562,3096.6,3095.9,3.23002]
[1720519174269,0.55,3096.5,3095.7,8.72602]
[1720519174478,0.8174216,3096.5,3095.8,3.0]
[1720519174903,0.8174216,3096.5,3095.9,0.95]
[1720519176314,0.55,3096.5,3095.9,0.95]
[1720519176611,0.55,3096.6,3095.9,0.95]
[1720519177024,2.2745,3096.5,3095.9,0.95]
[1720519177188,0.55,3096.4,3095.7,3.4458]
[1720519177529,0.28245,3096.3,3095.7,3.4458]
[1720519177680,0.28245,3096.3,3095.5,0.95]
[1720519178091,1.63614562,3096.3,3095.4,2.3361]
[1720519178314,0.06462145,3096.2,3095.4,2.3361]
[1720519178470,1.64339378,3096.2,3095.4,3.2861]
[1720519179213,0.22507671,3096.2,3094.9,2.3533]
[1720519179409,2.86852145,3096.1,3095.1,0.95]
[1720519179615,0.53972938,3096.0,3095.1,0.95]
[1720519179811,0.61462145,3095.9,3095.1,0.95]
[1720519180203,0.61462145,3095.9,3095.1,4.1809]
[1720519180527,0.53972938,3096.0,3095.3,3.2176]
[1720519180828,2.2539,3096.1,3095.5,0.95]
[1720519181035,0.55,3096.0,3095.5,0.95]
[1720519182000,0.55,3096.0,3095.4,3.23058]
[1720519182627,0.55,3096.0,3095.4,6.4611]
[1720519183298,0.55,3096.0,3095.5,3.23049]
[1720519183498,0.55,3096.1,3095.5,3.23049]
[1720519183698,0.55,3096.2,3095.5,3.23049]
[1720519186226,2.4223,3096.0,3095.4,3.23058]
[1720519186438,0.24869215,3095.9,3095.4,3.23058]
[1720519191542,0.55,3096.2,3095.5,6.63109]
[1720519191949,0.28245,3096.3,3095.7,4.18025]
[1720519192262,7.36,3096.6,3095.5,2.4506]
[1720519192263,2.3519,3096.7,3096.1,3.22986]
[1720519192409,2.3519,3096.7,3095.6,0.06458678]
[1720519192410,7.36,3097.0,3096.4,0.95]
[1720519192616,2.35508785,3097.0,3096.4,0.95]
[1720519192832,2.3519,3097.1,3096.2,4.17966]
[1720519193239,0.95,3097.0,3096.0,3.2299]
[1720519193547,0.95,3097.0,3096.0,4.1799]
[1720519193751,0.44158713,3096.9,3096.0,4.1799]
[1720519193964,0.55,3096.8,3096.0,4.1799]
[1720519194353,2.4852,3096.7,3095.6,6.46068]
[1720519194666,0.55,3096.6,3095.7,4.18027]
[1720519194965,0.30998215,3096.5,3095.7,4.18027]
[1720519195126,0.55,3096.4,3095.7,4.18027]
[1720519195457,2.4852,3096.3,3095.4,3.23051]
[1720519195665,0.61462145,3096.2,3095.4,0.95]
[1720519195829,0.91814145,3096.2,3095.4,4.18057]
[1720519196033,0.91814145,3096.2,3095.6,0.95]
[1720519196367,0.85352,3096.2,3095.6,0.95]
[1720519196557,0.333872,3096.1,3095.6,0.95]
[1720519198378,0.06462145,3096.0,3095.4,0.95]
[1720519199451,2.3447,3096.0,3094.8,8.76826]
[1720519199749,0.55,3095.9,3094.9,3.0]
[1720519199948,0.28947,3095.8,3095.2,0.95]
[1720519200153,0.55,3095.7,3095.2,0.95]
[1720519200767,0.55,3095.7,3095.0,3.23093]
[1720519200768,0.55,3095.7,3095.4,0.95]
[1720519201135,0.28947,3095.8,3095.6,0.95]
[1720519201379,4.68635565,3096.1,3095.6,0.95]
[1720519201595,0.55,3096.0,3095.6,0.95]
[1720519201876,0.333872,3096.1,3095.8,0.95]
[1720519202083,1.35248365,3096.3,3095.8,0.95]
[1720519202288,1.35248365,3096.4,3096.2,0.95]
[1720519202440,0.56698704,3096.4,3096.2,0.95]
[1720519202642,0.30998215,3096.5,3095.9,6.45999]
[1720519202840,1.35248365,3096.7,3095.9,6.45999]
[1720519202841,1.35282015,3096.7,3095.9,6.45999]
[1720519203076,1.69102519,3096.8,3096.0,3.22995]
[1720519203077,1.35282015,3096.6,3096.0,3.22995]
[1720519203285,1.35282015,3096.8,3096.2,3.22974]
[1720519203486,8.71282015,3097.0,3096.2,3.22974]
[1720519203635,8.71282015,3097.0,3095.8,2.3217]
[1720519203636,2.32254412,3096.9,3095.8,2.3217]
[1720519203840,1.35282015,3096.8,3096.0,3.2299]
[1720519204073,0.39489479,3096.7,3096.1,3.22986]
[1720519204292,0.39489479,3096.7,3096.1,3.22979]
[1720519204587,0.39489479,3096.7,3096.1,6.45959]
[1720519204938,0.39489479,3096.7,3096.2,3.22975]
[1720519205355,0.39489479,3096.7,3096.3,3.2296]
[1720519205797,0.39489479,3096.7,3096.4,3.22955]
[1720519206090,0.90510252,3096.9,3096.4,3.22955]
[1720519206242,1.35343549,3096.8,3096.4,5.57315]
[1720519206455,1.35343549,3096.9,3096.4,2.3436]
[1720519206654,1.35343549,3096.9,3096.4,3.22953]
[1720519206892,1.35343549,3096.9,3096.1,5.57337]
[1720519207103,4.34415323,3097.3,3096.0,3.22995]
[1720519207104,1.35343549,3096.7,3096.0,3.22995]
[1720519207401,1.35343549,3096.7,3095.8,2.3436]
[1720519207402,1.35343549,3096.4,3095.8,3.23008]
[1720519207765,1.35343549,3096.4,3095.6,3.23033]
[1720519207966,1.90343549,3096.3,3095.7,3.0]
[1720519208156,1.90343549,3096.3,3095.7,6.23025]
[1720519208582,1.35343549,3096.3,3095.8,3.23017]
[1720519208902,1.68841077,3096.3,3095.5,3.23048]
[1720519209108,1.35343549,3096.1,3095.2,3.2308]
[1720519209266,2.4467,3096.2,3095.4,3.23056]
[1720519209463,1.35483457,3095.9,3095.4,3.23056]
[1720519209670,1.35483457,3095.9,3095.4,6.4611]
[1720519209866,1.35483457,3095.9,3095.2,3.23073]
[1720519210372,1.35483457,3095.9,3095.0,2.3436]
[1720519210611,1.35483457,3096.0,3095.6,3.23033]
[1720519210772,1.35483457,3096.0,3095.6,6.46066]
[1720519211810,1.35483457,3096.0,3095.7,3.23028]
[1720519212221,1.35483457,3096.1,3095.6,2.3609]
[1720519212510,1.35483457,3096.2,3096.0,3.22997]
[1720519212714,1.35483457,3096.4,3096.2,3.22969]
[1720519212869,1.35483457,3096.5,3096.2,3.22969]
[1720519213213,1.35483457,3096.6,3096.3,3.22964]
[1720519213575,1.25264704,3096.7,3096.3,3.22964]
[1720519213807,1.6937548,3096.8,3096.3,3.22964]
[1720519214212,1.6937548,3096.7,3096.1,3.22978]
[1720519214418,1.6937548,3096.6,3096.1,3.22978]
[1720519214715,1.6937548,3096.6,3096.1,6.45958]
[1720519215016,1.6937548,3096.6,3096.2,3.22974]
[1720519215485,1.6937548,3096.6,3096.3,3.22965]
[1720519215693,7.36,3096.9,3096.3,3.22965]
[1720519215885,1.69418751,3096.6,3096.4,3.22955]
[1720519216224,1.69418751,3096.8,3096.4,3.22955]
[1720519216611,1.69418751,3096.7,3096.2,6.45939]
[1720519216811,1.69418751,3096.7,3096.3,3.22963]
[1720519217710,1.69418751,3096.7,3096.2,3.22976]
[1720519217917,4.05528751,3096.6,3096.0,3.2299]
[1720519218104,1.75880896,3096.5,3095.8,3.23011]
[1720519218435,1.69418751,3096.4,3095.9,3.23007]
[1720519218896,1.69418751,3096.3,3095.9,3.23007]
[1720519219084,1.69452186,3096.3,3095.9,3.23007]
[1720519219285,1.69452186,3096.4,3095.7,3.23025]
[1720519219530,0.49322737,3096.4,3095.8,3.23017]
[1720519219688,1.69449602,3096.3,3095.8,3.23017]
[1720519220548,0.55,3096.2,3095.4,3.23053]
[1720519220851,1.69448686,3096.0,3095.4,3.23053]
[1720519221188,2.16827555,3096.0,3095.2,3.23075]
[1720519221448,2.24448686,3095.9,3095.1,3.23085]
[1720519222355,0.55,3095.9,3095.1,3.23085]
[1720519222566,1.69468384,3095.9,3095.4,3.23058]
[1720519222723,1.69468384,3096.0,3095.4,3.23058]
[1720519222921,1.69468384,3096.0,3095.4,3.23052]
[1720519224021,1.69468384,3095.9,3095.5,3.23047]
[1720519224213,1.69468384,3095.9,3095.3,3.23061]
[1720519224647,1.69468384,3095.9,3095.4,3.23058]
[1720519224851,1.69468384,3095.9,3095.4,6.46112]
[1720519225224,1.69468384,3095.9,3095.4,3.23054]
[1720519225425,2.13842622,3095.9,3095.2,3.23074]
[1720519225625,0.44374238,3095.9,3095.2,3.23074]
[1720519225827,1.69465833,3095.8,3095.3,3.23068]
[1720519226235,2.13840071,3095.9,3095.3,3.23068]
[1720519226425,1.69465833,3095.8,3095.4,3.23058]
[1720519226626,1.69465833,3095.9,3095.4,3.23053]
[1720519227025,1.69465833,3096.0,3095.4,3.23053]
[1720519227249,1.69465833,3096.0,3095.4,6.46106]
[1720519227674,2.4934,3096.1,3095.2,3.23073]
[1720519227675,2.24465833,3095.9,3095.2,3.23073]
[1720519227873,1.69465833,3095.8,3095.2,3.23073]
[1720519228072,0.55,3095.7,3095.2,3.23073]
[1720519229290,1.69471055,3095.8,3095.4,3.23058]
[1720519229680,1.69464476,3095.8,3095.3,3.23069]
[1720519230054,1.69464476,3095.8,3095.2,3.2308]
[1720519230550,0.55,3095.7,3095.1,3.23091]
[1720519230952,2.4922,3095.6,3094.7,0.1153191]
[1720519231149,1.69464476,3095.1,3094.7,0.1153191]
[1720519231406,1.86410924,3095.1,3094.7,0.1153191]
[1720519231592,0.55,3095.5,3094.7,3.3466391]
[1720519231593,1.69464476,3095.2,3094.7,3.3466391]
[1720519231775,2.4922,3095.6,3094.7,3.3466391]
[1720519231776,1.69464476,3095.3,3094.9,3.23106]
[1720519231952,1.69464476,3095.3,3095.0,3.23099]
[1720519232156,1.69464476,3095.6,3095.2,3.2308]
[1720519232465,1.69400713,3095.8,3095.3,3.23064]
[1720519233308,1.69400713,3095.9,3095.4,3.23058]
[1720519234201,0.33784133,3095.8,3095.4,3.23058]
[1720519234865,0.33784133,3095.8,3095.7,3.23028]
[1720519235065,0.33784133,3095.8,3095.7,8.82346]
[1720519238955,0.33784133,3095.8,3095.4,2.288]
[1720519239261,0.33784133,3095.8,3095.7,3.23028]
[1720519239607,0.33784133,3095.8,3095.5,3.23042]
[1720519240710,0.33784133,3095.8,3095.3,6.46128]
[1720519240911,0.33784133,3095.8,3095.3,6.46126]
[1720519241118,0.33784133,3095.8,3095.3,3.23063]
[1720519241606,0.33784133,3095.8,3095.1,3.23085]
[1720519242574,0.33784133,3095.8,3095.3,3.23069]
[1720519243415,0.33784133,3095.8,3095.5,3.23049]
[1720519243583,0.33784133,3095.8,3095.5,3.23042]
[1720519246002,0.33784133,3095.8,3095.5,6.46085]
[1720519246805,0.33784133,3095.8,3095.5,3.23042]
[1720519247191,0.33784133,3095.8,3095.5,6.46085]
[1720519247926,0.33784133,3095.8,3095.7,6.46056]
[1720519251035,0.33784133,3095.8,3095.7,3.23028]
[1720519253223,0.33784133,3095.8,3095.7,6.46056]
[1720519253620,0.33784133,3095.8,3095.7,3.23028]
[1720519257631,0.33784133,3095.8,3095.4,5.51853]
[1720519257941,0.33784133,3095.8,3095.5,3.23048]
[1720519258503,0.33784133,3095.8,3095.5,3.23049]
[1720519260139,0.33784133,3095.8,3095.5,6.46092]
[1720519260315,0.33784133,3095.8,3095.6,3.23035]
[1720519260511,0.33784133,3095.8,3095.7,3.23028]
[1720519260712,0.33784133,3095.8,3095.7,6.46056]
[1720519262849,0.33784133,3095.8,3095.7,12.09514]
[1720519264641,0.33784133,3095.8,3095.7,6.46056]
[1720519264843,0.33784133,3095.8,3095.7,3.23028]
[1720519265637,0.33784133,3095.8,3095.7,6.46056]
[1720519266150,0.33184133,3095.8,3095.7,6.46056]
[1720519267034,0.33184133,3095.8,3095.7,9.69084]
[1720519267420,0.33184133,3095.8,3095.7,6.46056]
[1720519268651,0.33184133,3095.8,3095.7,9.69084]
[1720519269221,0.33184133,3095.8,3095.7,12.11114]
[1720519270112,0.33184133,3095.8,3095.7,8.88086]
[1720519270532,0.33184133,3095.8,3095.7,12.11114]
[1720519270907,0.33184133,3095.8,3095.7,8.88086]
[1720519271448,0.33184133,3095.8,3095.7,3.23028]
[1720519271748,0.33184133,3095.8,3095.6,3.23039]
[1720519273655,0.33184133,3095.8,3095.7,3.23028]
[1720519273809,0.33184133,3095.8,3095.7,6.46056]
[1720519275324,0.33184133,3095.8,3095.5,2.288]
[1720519275325,0.33184133,3095.8,3095.5,8.74886]
[1720519275746,0.33184133,3095.8,3095.6,3.23038]
[1720519276109,2.0269055,3095.8,3095.5,2.288]
[1720519276315,2.22959605,3095.8,3095.3,3.2307]
[1720519276524,1.69506417,3095.7,3095.3,3.2307]
[1720519276727,1.69506417,3095.6,3095.3,3.2307]
[1720519277630,0.53453188,3095.8,3095.3,3.2307]
[1720519277821,0.53453188,3095.8,3095.1,3.23084]
[1720519277822,1.6965125,3095.5,3095.1,6.46168]
[1720519278022,1.6965125,3095.4,3094.9,3.23105]
[1720519278229,1.69658787,3095.3,3095.0,3.231]
[1720519278527,1.69658787,3095.4,3094.7,6.3465791]
[1720519278729,1.69658787,3095.3,3094.9,3.23111]
[1720519278927,0.45767364,3095.6,3095.0,3.23094]
[1720519279148,1.69635286,3095.4,3095.0,3.23094]
[1720519279747,1.69635286,3095.4,3095.0,3.23101]
[1720519280970,0.45767364,3095.6,3095.1,3.23088]
[1720519281271,1.69581905,3095.5,3095.1,3.23088]
[1720519281488,1.69581905,3095.6,3095.1,6.46173]
[1720519281711,1.69581905,3095.8,3095.4,3.23059]
[1720519282557,1.69581905,3095.8,3095.5,3.23049]
[1720519282808,1.69581905,3095.9,3095.4,2.288]
[1720519283103,1.69581905,3096.1,3095.9,3.23007]
[1720519283258,2.03498286,3096.4,3095.9,3.23007]
[1720519283259,1.69581905,3096.2,3095.9,3.23001]
[1720519283460,1.69581905,3096.2,3095.9,6.46002]
[1720519283655,1.69581905,3096.2,3096.0,3.22997]
[1720519283892,1.69581905,3096.3,3096.0,3.22997]
[1720519284120,1.69581905,3096.4,3096.0,3.22997]
[1720519284310,2.3641,3096.5,3096.1,3.22986]
[1720519284486,1.69502825,3096.4,3096.1,3.22986]
[1720519284885,1.69502825,3096.4,3096.2,3.22976]
[1720519285071,3.764,3098.0,3096.2,3.22976]
[1720519285072,1.69502825,3096.6,3096.2,3.22976]
[1720519285901,1.69502825,3096.4,3096.1,3.22986]
[1720519286211,2.3587,3096.2,3095.7,6.46045]
[1720519286374,4.05372825,3096.2,3095.7,3.23022]
[1720519286576,4.05372825,3096.2,3095.5,6.4609]
[1720519286577,1.69502825,3096.0,3095.5,6.4609]
[1720519286790,0.16950283,3095.9,3095.5,3.23044]
[1720519286976,1.86453108,3095.9,3095.5,3.23044]
[1720519287175,1.69502825,3095.9,3095.5,3.23042]
[1720519287393,2.3587,3096.2,3095.6,3.23034]
[1720519287593,1.69506802,3096.0,3095.6,3.23034]
[1720519287969,1.69511085,3096.0,3095.6,3.23034]
[1720519288717,1.6951716,3096.0,3095.6,3.23034]
[1720519289298,1.6951716,3096.0,3095.7,3.23027]
[1720519289494,1.6951716,3096.0,3095.5,3.23042]
[1720519289805,1.88827576,3095.9,3095.6,3.23036]
[1720519290009,1.6951716,3095.9,3095.6,3.23036]
[1720519290195,1.6951716,3095.9,3095.4,2.288]
[1720519290609,2.3535,3095.8,3095.0,2.288]
[1720519290805,1.69535912,3095.7,3095.0,2.288]
[1720519291113,1.69535912,3095.7,3095.5,3.23044]
[1720519291277,4.04885912,3095.8,3095.5,3.23044]
[1720519291479,1.69535912,3095.8,3095.6,3.23032]
[1720519291709,1.69535912,3095.9,3095.6,3.23032]
[1720519293396,1.69535912,3096.0,3095.7,6.4605]
[1720519293600,1.69535912,3096.0,3095.7,3.23022]
[1720519294209,1.69535912,3096.0,3095.7,6.46044]
[1720519294438,1.69535912,3096.0,3095.9,3.23007]
[1720519294576,1.69535912,3096.1,3095.9,3.23007]
[1720519294916,1.69535912,3096.2,3095.9,3.23007]
[1720519296119,1.69535912,3096.1,3095.8,3.23017]
[1720519296327,1.86489503,3096.1,3095.8,3.23017]
[1720519296655,1.69535912,3096.1,3095.8,3.23017]
[1720519297198,2.68719,3096.4,3095.8,3.23017]
[1720519297518,1.69510036,3096.1,3095.8,3.23017]
[1720519297719,2.68719,3096.4,3095.8,3.23017]
[1720519297882,1.69504955,3096.0,3095.7,3.23027]
[1720519298276,1.69504955,3095.8,3095.3,3.2307]
[1720519298489,1.69526072,3095.8,3095.3,3.2307]
[1720519298894,1.69526072,3095.7,3095.3,3.2307]
[1720519299508,1.69526072,3095.8,3095.3,3.2307]
[1720519300581,1.69517137,3095.7,3095.3,3.2307]
[1720519301181,1.69517137,3095.8,3095.3,3.2307]
[1720519301399,1.69517137,3095.6,3094.7,0.1153191]
[1720519301582,1.69535838,3095.0,3094.7,0.1153191]
[1720519301820,4.24207983,3094.9,3094.7,0.1153191]
[1720519301987,1.69535838,3094.8,3094.7,0.1153191]
[1720519302180,2.90630798,3094.9,3094.7,0.1153191]
[1720519302427,1.69549666,3094.8,3094.7,0.1153191]
[1720519302730,2.90630798,3094.9,3094.7,0.1153191]
[1720519302731,4.60180464,3094.9,3094.7,0.1153191]
[1720519302938,2.15567712,3094.8,3094.7,0.1153191]
[1720519303141,0.46018046,3094.8,3094.7,0.1153191]
[1720519303325,4.17759666,3094.9,3094.7,0.1153191]
[1720519303843,4.17602702,3094.9,3094.7,0.1153191]
[1720519304155,2.4821,3094.9,3094.7,0.1153191]
[1720519305005,4.17602702,3094.9,3094.7,0.1153191]
[1720519305199,0.4176027,3094.8,3094.7,0.1153191]
[1720519307220,2.4821,3094.9,3094.7,0.1153191]
[1720519307724,0.06462145,3094.8,3094.7,0.1153191]
[1720519308616,4.17430413,3094.9,3094.7,0.1153191]
[1720519308805,1.69220413,3094.8,3094.7,0.1153191]
[1720519309317,2.54672145,3094.9,3094.7,0.1153191]
[1720519309516,2.1487048,3094.8,3094.7,0.1153191]
[1720519310302,2.14868738,3094.8,3094.7,0.1153191]
[1720519310525,0.45773664,3094.8,3094.7,0.1153191]
[1720519312080,2.4821,3094.9,3094.7,0.1153191]
[1720519312373,3.0,3095.2,3094.7,0.1153191]
[1720519312374,3.0,3095.0,3094.7,0.1153191]
[1720519312727,2.392,3095.2,3094.7,0.1153191]
[1720519313033,5.80029507,3095.2,3094.7,0.1153191]
[1720519313363,5.392,3095.2,3094.7,0.1153191]
[1720519313572,2.392,3095.2,3094.7,0.1153191]
[1720519313929,2.85073583,3095.2,3094.7,0.1153191]
[1720519314626,4.5406544,3095.2,3094.7,0.1153191]
[1720519314826,0.75406544,3095.1,3094.7,0.1153191]
[1720519318829,0.75406544,3095.1,3094.4,2.5849091]
[1720519319456,0.75406544,3095.1,3094.2,3.23175]
[1720519319639,0.75406544,3095.1,3094.3,3.23172]
[1720519319839,0.75406544,3095.1,3094.3,6.4634]
[1720519320130,0.31460654,3095.0,3094.4,3.23159]
[1720519320628,1.68983895,3095.5,3094.8,5.61607]
[1720519320975,1.68983895,3095.7,3095.0,3.231]
[1720519321177,2.09046609,3095.8,3095.0,3.231]
[1720519321335,1.68983895,3095.9,3095.2,3.2308]
[1720519321537,1.68983895,3096.0,3095.2,3.2308]
[1720519321732,1.68983895,3096.0,3095.3,3.23061]
[1720519321985,4.01843895,3096.2,3095.4,3.23053]
[1720519322277,0.4018439,3096.1,3095.4,3.23053]
[1720519322767,0.4018439,3096.1,3095.4,6.46104]
[1720519323370,1.68969395,3096.3,3095.4,6.46104]
[1720519323870,1.68969395,3096.4,3095.6,3.23036]
[1720519324080,4.68969395,3096.5,3095.6,3.23036]
[1720519324379,0.74675298,3096.4,3095.7,3.23028]
[1720519324675,4.00879395,3096.6,3095.7,3.23028]
[1720519324977,2.3191,3096.6,3095.7,3.23028]
[1720519325175,4.00840664,3096.6,3095.7,3.23028]
[1720519325589,3.0,3096.5,3095.7,3.23028]
[1720519325792,0.70084066,3096.4,3095.7,3.23028]
[1720519326481,0.70084066,3096.4,3095.8,3.23017]
[1720519326796,2.3191,3096.6,3096.0,3.22996]
[1720519326797,1.68911494,3096.6,3096.0,3.22996]
[1720519326952,1.68911494,3096.9,3096.0,3.22996]
[1720519327257,0.44519508,3096.8,3096.0,3.22996]
[1720519328052,0.44519508,3096.8,3096.1,3.22984]
[1720519329600,0.44519508,3096.8,3096.0,6.45979]
[1720519329889,0.44519508,3096.8,3096.0,3.22989]
[1720519330064,0.51336078,3096.7,3096.0,3.22989]
[1720519330657,0.51336078,3096.7,3095.8,3.23012]
[1720519330658,0.06462145,3096.6,3095.7,3.23028]
[1720519331067,0.06462145,3096.6,3095.6,3.23037]
[1720519331280,1.75303415,3096.6,3095.6,3.23037]
[1720519331495,2.21505219,3096.5,3095.6,3.23037]
[1720519331668,2.37762145,3096.4,3095.6,3.23037]
[1720519332704,2.37762145,3096.4,3095.2,2.3724]
[1720519332899,1.68896651,3096.3,3095.4,3.23058]
[1720519333070,4.00196651,3096.4,3095.4,3.23058]
[1720519333263,4.00196651,3096.4,3095.2,2.3724]
[1720519333264,3.4528606,3096.3,3095.2,2.3724]
[1720519333457,3.4528606,3096.3,3095.7,3.23028]
[1720519333858,0.4528606,3096.3,3095.7,3.23028]
[1720519334076,3.0,3096.4,3095.7,3.23028]
[1720519334285,2.215606,3096.5,3095.7,3.23028]
[1720519334799,1.68896651,3096.4,3095.4,6.46105]
[1720519335097,4.68896651,3096.4,3095.4,3.23052]
[1720519335393,3.52802275,3096.3,3095.5,3.23044]
[1720519335595,0.52802275,3096.3,3095.5,3.23044]
[1720519335798,1.68896651,3096.4,3095.5,3.23044]
[1720519335799,3.0,3096.4,3095.5,3.23044]
[1720519335996,1.68912717,3096.3,3095.5,3.23044]
[1720519336295,1.68921682,3096.3,3095.5,3.23044]
[1720519336499,0.24000528,3096.2,3095.3,3.23065]
[1720519336799,0.17538383,3096.2,3095.6,3.23031]
[1720519336969,1.68914207,3096.4,3095.6,3.23031]
[1720519337507,1.68914207,3096.3,3095.3,3.23064]
[1720519337672,1.75376352,3096.3,3095.2,2.3724]
[1720519337877,1.86451842,3096.2,3095.2,5.60314]
[1720519338062,2.3913,3096.1,3095.2,5.60314]
[1720519338263,4.08044207,3096.1,3095.2,5.60314]
[1720519338461,2.3913,3096.1,3095.2,5.60314]
[1720519338773,0.42558184,3096.0,3095.2,5.60314]
[1720519339174,0.42558184,3096.0,3095.3,3.23069]
[1720519340299,0.42558184,3096.0,3095.3,6.46133]
[1720519341091,0.42558184,3096.0,3095.5,3.23043]
[1720519341362,0.17537635,3096.2,3095.5,3.23039]
[1720519341580,0.17537635,3096.2,3095.7,3.23027]
[1720519342547,3.0,3096.4,3095.5,5.51843]
[1720519342684,7.36,3096.5,3096.0,3.22989]
[1720519343222,7.36,3096.5,3096.2,3.2297]
[1720519343418,7.36,3096.5,3096.2,6.45938]
[1720519343792,7.36,3096.5,3096.2,3.22968]
[1720519344283,7.36,3096.5,3096.2,6.45938]
[1720519344489,7.36,3096.5,3096.2,3.22968]
[1720519344690,7.36,3096.5,3096.4,3.22955]
[1720519344901,7.36,3097.0,3096.6,3.22934]
[1720519345123,3.40926364,3096.9,3096.6,3.22934]
[1720519345688,3.40926364,3096.9,3096.7,3.22921]
[1720519346835,3.40926364,3096.9,3096.4,3.22949]
[1720519347511,3.40926364,3096.9,3096.6,3.22932]
[1720519348124,1.07692636,3096.8,3096.2,3.2297]
[1720519348510,1.07692636,3096.8,3096.3,3.22965]
[1720519350443,3.0,3096.9,3096.5,3.22941]
[1720519350728,7.36,3097.0,3096.7,3.22916]
[1720519351626,7.36,3097.0,3096.8,3.22913]
[1720519352286,10.36,3097.5,3096.5,0.06458196]
[1720519352491,2.4423,3097.8,3096.7,2.288]
[1720519352707,1.14890067,3097.8,3096.8,0.06457252]
[1720519352945,1.14890067,3097.8,3097.5,3.22838]
[1720519353087,1.14890067,3097.8,3097.6,3.2283]
[1720519354034,7.36,3098.0,3097.8,3.22799]
[1720519355812,7.36,3098.0,3097.6,3.22823]
[1720519356092,7.36,3098.0,3097.8,3.22804]
[1720519357419,7.36,3098.0,3097.6,6.45643]
[1720519357724,7.36,3098.0,3097.6,3.2282]
[1720519357934,7.36,3098.0,3097.6,6.45644]
[1720519358144,8.096,3098.0,3097.1,2.288]
[1720519358288,2.36212145,3097.9,3097.1,5.51674]
[1720519358495,2.36212145,3097.9,3097.1,3.22874]
[1720519358802,5.36212145,3097.9,3097.1,3.22874]
[1720519359007,0.53621215,3097.8,3097.1,3.22874]
[1720519359203,0.06462145,3097.7,3097.1,3.22874]
[1720519359427,2.2975,3097.9,3097.1,6.45748]
[1720519359617,2.2975,3097.9,3097.2,3.22872]
[1720519361206,2.2975,3097.9,3097.4,3.22845]
[1720519362431,2.52725,3097.9,3097.4,3.22845]
[1720519362642,2.52725,3097.9,3097.2,3.22866]
[1720519362801,2.2975,3097.9,3097.2,6.45729]
[1720519363344,2.2975,3097.9,3097.3,3.22858]
[1720519363930,0.06462145,3097.8,3096.8,3.22906]
[1720519364134,0.22975,3097.8,3097.0,3.22891]
[1720519365404,0.22975,3097.8,3097.0,6.45778]
[1720519365638,0.22975,3097.8,3097.0,3.22887]
[1720519367918,0.22975,3097.8,3097.0,6.45773]
[1720519368339,0.252725,3097.7,3097.0,6.45773]
[1720519369026,0.252725,3097.7,3097.0,3.22886]
[1720519372125,2.3185,3097.6,3096.8,3.22907]
[1720519372331,0.06462145,3097.5,3096.6,3.22927]
[1720519372848,2.3693,3097.4,3096.6,3.22927]
[1720519373565,2.3693,3097.4,3096.3,4.5428]
[1720519373566,2.3693,3097.4,3096.7,3.22921]
[1720519373741,0.24339215,3097.3,3096.7,3.22921]
[1720519374569,2.4609,3097.9,3097.0,3.22886]
[1720519374769,5.4609,3097.9,3097.0,3.22886]
[1720519375063,5.4609,3097.9,3097.2,3.22871]
[1720519375277,2.4609,3097.9,3097.1,2.35256976]
[1720519375578,2.4609,3097.9,3097.4,3.22843]
[1720519375865,2.4609,3097.9,3097.5,3.22839]
[1720519377450,2.4609,3097.9,3097.4,3.22842]
[1720519378544,2.4609,3097.9,3097.5,3.22839]
[1720519378747,2.4609,3097.9,3097.3,3.22851]